Cogmind - Beta 14 @@@ ROGUE MODE // 2025.03.06 @ 01:47:06 Player: mix Result: Destroyed by Y-45 Defender with Beam Rifle Performance ------------- Evolutions (1) 500 Regions Visited (4) 800 Robots Destroyed (19) 95 Value Destroyed (483) 483 Prototype IDs (2) 40 Alien Tech Used (0) 0 Bonus (21) 21 TOTAL SCORE: 1939 Bonus ------- Follower Combat Kills 21 Cogmind --------- Core Integrity 0/400 Matter 300/300 Energy 100/100 System Corruption 0% Temperature Cool (9) Movement Core (50) Location -9/Storage Parts ------- > --- POWER (1) -------- (None) > --- PROPULSION (2) --- (None) > --- UTILITY (4) ------ (None) > --- WEAPON (2) ------- (None) > --- INVENTORY (5) ---- Large Storage Unit Peak State ------------ > --- POWER ------------ (None) > --- PROPULSION ------- (None) > --- UTILITY ---------- Light Regenerative Plating > --- WEAPON ----------- Advanced Beam Cannon > --- INVENTORY -------- Large Storage Unit [Rating: 9] Favorites ----------- Power Ion Engine Engine Ion Engine Propulsion Light Treads Treads Light Treads Wheel Compact Wheel Flight Unit Flight Unit Utility Small Storage Unit Storage Small Storage Unit Protection Light Regenerative Plating Weapon Light Cannon Energy Gun Medium Laser Energy Cannon Beam Cannon Ballistic Cannon Light Cannon Build | -11 -10 -10 -9 -9 ------- Run | Yrd Mat Min Mat Sto Slots Evolved 2 | . . . 2 . Power . | . . . . . Propulsion . | . . . . . Utility 2 | . . . 2 . Weapon . | . . . . . Parts Attached 21 | 6 8 1 . 6 Power 2 | 1 1 . . . Engine 2 | 1 1 . . . Core . | . . . . . Reactor . | . . . . . Propulsion 7 | 2 2 1 . 2 Treads 2 | 2 . . . . Leg . | . . . . . Wheel 2 | . . . . 2 Hover . | . . . . . Flight 3 | . 2 1 . . Utility 4 | 1 1 . . 2 Device . | . . . . . Storage 3 | 1 1 . . 1 Processor . | . . . . . Hackware . | . . . . . Protection 1 | . . . . 1 Artifact . | . . . . . Weapon 8 | 2 4 . . 2 Energy Gun 2 | 2 . . . . Energy Cannon 3 | . 2 . . 1 Ballistic Gun . | . . . . . Ballistic Cannon 3 | . 2 . . 1 Launcher . | . . . . . Special Weapon . | . . . . . Impact Weapon . | . . . . . Slashing Weapon . | . . . . . Piercing Weapon . | . . . . . Special Melee Weapon . | . . . . . Unidentified Prototypes 2 | . . . . 2 Parts Lost 12 | . 5 1 1 5 Power 1 | . 1 . . . Propulsion 6 | . 2 1 1 2 Utility 1 | . . . . 1 Weapon 4 | . 2 . . 2 Highest Loss Streak 5 | . 5 1 1 3 To Critical Strikes . | . . . . . Average Slot Usage (%) 60 | . 77 53 40 32 Engine 6 | . 11 . . . Treads 12 | . 22 . . . Wheel 2 | . . . . 9 Flight 5 | . 3 25 18 . Storage 13 | . 14 14 11 11 Protection 1 | . . . . 4 Energy Gun 7 | . 12 . . . Energy Cannon 3 | . 1 14 11 2 Ballistic Cannon 7 | . 10 . . 4 Peak Build Rating 9 | 6 6 4 4 9 Average Rating 5 | 4 5 3 3 4 On Entrance 3 | . 6 4 4 3 Naked Turns 43 | . . . . 43 Heaviest Build 31 | 13 31 8 8 31 Greatest Support 40 | 40 40 8 8 32 Greatest Overweight (x) 10 | . 10 1 1 8 Average Overweight (x) . | . . . . . Largest Inventory Capacity 15 | 8 15 8 8 15 Average Capacity 8 | 7 8 8 8 9 Most Carried 5 | 5 4 4 4 3 Average Carried 1 | . 2 3 4 . Final Capacity 8 | 8 8 8 8 5 Final Carried 4 | . 2 4 4 1 Class Distribution -------------------- 100% | Mutant Dominant Class ---------------- Mutant | -10/Materials Mutant | -10/Mines Mutant | -9/Materials Mutant | -9/Storage Resources | -11 -10 -10 -9 -9 ----------- Run | Yrd Mat Min Mat Sto Matter Collected 650 | 225 228 92 . 105 Remotely . | . . . . . Salvage Created 565 | . 336 123 54 52 Parts 27 | . 17 8 . 2 Haulers Intercepted . | . . . . . Recyclers Shooed . | . . . . . Parts Field Recycled . | . . . . . Retrieved Matter . | . . . . . Parts Self-Destructed . | . . . . . Prevented . | . . . . . Kills | -11 -10 -10 -9 -9 ------- Run | Yrd Mat Min Mat Sto Combat Hostiles Destroyed 16 | . 10 3 1 2 Guns 2 | . 2 . . . Cannons 14 | . 8 3 1 2 Classes Destroyed 6 | . 4 1 1 . Recycler 1 | . . 1 . . Mechanic 1 | . 1 . . . Watcher 1 | . 1 . . . Swarmer 6 | . 3 3 . . Grunt 8 | . 7 . . 1 Sentry 2 | . . . 1 1 Best Kill Streak 4 | . 4 2 1 1 Combat Bots Only 4 | . 4 2 1 1 Max Kills in Single Turn 1 | . 1 1 1 1 Gunslinging . | . . . . . Exploded . | . . . . . Melee . | . . . . . Uniques/NPCs Destroyed . | . . . . . Combat | -11 -10 -10 -9 -9 -------- Run | Yrd Mat Min Mat Sto Hostile Shots Fired 223 | . 99 18 14 92 Missed 63 | . 20 9 6 28 Damage Taken 1950 | . 902 81 117 850 Core 593 | . 155 32 61 345 Absorbed by Shields . | . . . . . Regen/Repaired (Parts) 26 | . . . . 26 Core Remaining (%) 62 | 100 . 25 . . Volleys Fired 98 | 5 56 12 7 18 Largest 2 | 2 2 1 1 2 Hottest 95 | 90 95 60 60 95 Shots Fired 137 | 10 89 12 7 19 Gun 48 | 10 38 . . . Cannon 89 | . 51 12 7 19 Launcher . | . . . . . Special . | . . . . . Kinetic 58 | . 40 . . 18 Thermal 79 | 10 49 12 7 1 Explosive . | . . . . . Electromagnetic . | . . . . . Robot Hit Streak 9 | 2 7 3 8 9 Robot Miss Streak 5 | 3 5 3 . 2 Penetration Max . | . . . . . Secondary Targets . | . . . . . Shots Hit Robots 78 | 5 47 6 7 13 Core Hits 28 | 1 18 4 2 3 Critical Kills . | . . . . . Critical Parts Destroyed . | . . . . . Critical Strikes 1 | 1 . . . . Burn 1 | 1 . . . . Melee Attacks . | . . . . . Impact . | . . . . . Slashing . | . . . . . Piercing . | . . . . . Sneak Attacks . | . . . . . Combat Hostiles . | . . . . . Follow-up Attacks . | . . . . . Damage Inflicted 1342 | 56 813 103 125 245 Guns 349 | 56 293 . . . Cannons 990 | . 520 103 125 242 Explosions . | . . . . . Melee . | . . . . . Ramming 3 | . . . . 3 Kinetic 655 | . 431 . . 224 Thermal 684 | 56 382 103 125 18 Explosive . | . . . . . Electromagnetic . | . . . . . Impact . | . . . . . Slashing . | . . . . . Piercing . | . . . . . Highest Corruption . | . . . . . Average Corruption . | . . . . . Corruption Purged . | . . . . . Corruption Blocked . | . . . . . Overload Shots . | . . . . . Overflow Damage . | . . . . . Projectiles . | . . . . . Explosions . | . . . . . Melee . | . . . . . Knockbacks 5 | . 5 . . . Impact . | . . . . . Kinetic 5 | . 5 . . . Secondary . | . . . . . Self-Inflicted Damage 1 | . . . . 1 Shots . | . . . . . Rammed 6 | . 1 . . 5 Targets Rammed 6 | . 1 . . 5 Kicked . | . . . . . Crushed . | . . . . . Highest Temperature 410 | 150 410 56 67 18 Average Temperature 137 | 78 177 27 37 8 Received Heat Transfer 861 | . 456 15 45 345 Effects 5 | . 5 . . . Energy Bleed 1 | . 1 . . . Interference 1 | . 1 . . . Matter Decay 2 | . 2 . . . Damage (minor) 1 | . 1 . . . Siege Activations . | . . . . . Robots Corrupted . | . . . . . Combat Hostiles . | . . . . . Parts Fried . | . . . . . Impact Corruptions . | . . . . . Robots Melted . | . . . . . Combat Hostiles . | . . . . . Parts Melted 5 | . 3 . 2 . Heat Transferred 1730 | 223 989 222 259 37 Parts Sabotaged . | . . . . . Parts Stolen . | . . . . . Parts Stripped . | . . . . . Power Chain Reactions . | . . . . . Alert | -11 -10 -10 -9 -9 ------- Run | Yrd Mat Min Mat Sto Peak Influence 216 | . 152 173 116 216 Initial 66 | . . 48 66 48 Average 92 | . 85 127 85 107 Maximum Alert Level 1 | . . . . 1 Low Security (%) 98 | 100 100 100 100 96 Level 1 1 | . . . . 4 Level 2 . | . . . . . Level 3 . | . . . . . Level 4 . | . . . . . Level 5 . | . . . . . High Security . | . . . . . Max Security . | . . . . . Squads Dispatched 8 | . 4 . 1 3 Investigation 2 | . 1 . . 1 Extermination . | . . . . . Reinforcement 4 | . 3 . 1 . Assault 2 | . . . . 2 Garrison . | . . . . . Intercept . | . . . . . Searches Triggered . | . . . . . Construction Impeded . | . . . . . Haulers Reinforced . | . . . . . Active Scanning Responses . | . . . . . Cargo Convoy Interrupts . | . . . . . Stealth | -11 -10 -10 -9 -9 --------- Run | Yrd Mat Min Mat Sto Distress Signals 3 | . 1 . . 2 Communications Jammed . | . . . . . Distress Signals . | . . . . . Times Spotted 49 | . 20 8 2 19 Peak Tracking Total 8 | . 4 3 2 8 Tactical Retreats 4 | . . 2 . 2 Traps | -11 -10 -10 -9 -9 ------- Run | Yrd Mat Min Mat Sto Traps Triggered 2 | . 1 . . 1 Indirectly . | . . . . . Trap Hack Attempts . | . . . . . Triggered . | . . . . . Disarmed . | . . . . . Reprogrammed . | . . . . . Reused . | . . . . . Traps Extracted . | . . . . . Installed . | . . . . . Triggered . | . . . . . Machines | -11 -10 -10 -9 -9 ---------- Run | Yrd Mat Min Mat Sto Machines Disabled . | . . . . . Max in Single Turn . | . . . . . Machines Repaired . | . . . . . Machines Dismantled . | . . . . . Machines Sabotaged . | . . . . . Overloaded Fab Kills . | . . . . . Hacking | -11 -10 -10 -9 -9 --------- Run | Yrd Mat Min Mat Sto Machines Accessed 4 | . . . . 4 Terminals 3 | . . . . 3 Fabricators . | . . . . . Repair Stations . | . . . . . Recycling Units 1 | . . . . 1 Scanalyzers . | . . . . . Garrison Access . | . . . . . Total Hacks 8 | . . . . 8 Successful 3 | . . . . 3 Failed 5 | . . . . 5 Catastrophic . | . . . . . Database Lockouts . | . . . . . Manual . | . . . . . Terminals 5 | . . . . 5 Fabricators . | . . . . . Repair Stations . | . . . . . Recycling Units 3 | . . . . 3 Scanalyzers . | . . . . . Garrison Access . | . . . . . Terminal Hacks 3 | . . . . 3 Open Door 2 | . . . . 2 Alert Level 1 | . . . . 1 Fabricator Hacks . | . . . . . Repair Station Hacks . | . . . . . Recycling Unit Hacks . | . . . . . Scanalyzer . | . . . . . Garrison Access Hacks . | . . . . . Unauthorized Hacks . | . . . . . Terminals . | . . . . . Fabricators . | . . . . . Repair Stations . | . . . . . Recycling Units . | . . . . . Scanalyzers . | . . . . . Garrison Access . | . . . . . Data Cores Recovered . | . . . . . Used . | . . . . . Hacking Detections 2 | . . . . 2 Full Trace Events 1 | . . . . 1 Feedback Events . | . . . . . Feedback Blocked . | . . . . . Robot Schematics Acquired . | . . . . . Robots Built . | . . . . . Authchips . | . . . . . Time . | . . . . . Total Robot Build Rating . | . . . . . Part Schematics Acquired . | . . . . . Parts Built . | . . . . . Authchips . | . . . . . Time . | . . . . . Total Part Build Rating . | . . . . . Parts Repaired . | . . . . . Time . | . . . . . Parts Recycled . | . . . . . Recycled Matter . | . . . . . Retrieved Matter . | . . . . . Retrieved Components . | . . . . . Parts Scanalyzed . | . . . . . Part Schematics Acquired . | . . . . . Parts Damaged . | . . . . . Bothacking | -11 -10 -10 -9 -9 ------------ Run | Yrd Mat Min Mat Sto Used RIF Installer . | . . . . . Robots Hacked . | . . . . . Non-combat . | . . . . . Combat . | . . . . . Robot Hacks Applied . | . . . . . Relay Couplers Released . | . . . . . Fabnet Peak Effective % . | . . . . . Robots Rewired . | . . . . . Allies Hacked . | . . . . . Hacks Repelled . | . . . . . Allies | -11 -10 -10 -9 -9 -------- Run | Yrd Mat Min Mat Sto Total Allies 2 | . . . . 2 Largest Group 2 | . . . . 2 Highest-Rated Group 62 | . . . . 62 Highest-Rated Ally 31 | . . . . 31 Total Orders . | . . . . . Ally Attacks 14 | . . . . 14 Total Damage 191 | . . . . 191 Kills 3 | . . . . 3 Allies Corrupted . | . . . . . Allies Melted . | . . . . . Intel | -11 -10 -10 -9 -9 ------- Run | Yrd Mat Min Mat Sto Robot Analysis Total . | . . . . . Derelict Logs Recovered 1 | . . 1 . . Drone Launches . | . . . . . Drone Recoveries . | . . . . . Exploration | -11 -10 -10 -9 -9 ------------- Run | Yrd Mat Min Mat Sto Turns Passed 1155 | 62 597 144 27 325 Spaces Moved 960 | 35 369 258 35 263 Core 195 | 18 4 . . 173 Treads 247 | 17 230 . . . Legs . | . . . . . Wheels 90 | . . . . 90 Hover . | . . . . . Flight 428 | . 135 258 35 . Fastest Speed 37 | 50 37 37 37 50 Average Speed 85 | 103 116 42 39 87 Slowest Speed 550 | 160 550 120 120 450 Overloaded Moves . | . . . . . Propulsion Burnouts . | . . . . . Robots Hopped 4 | . . 3 1 . Cave-ins Triggered . | . . . . . Exploration Rate (%) 36 | 3 66 67 7 41 Regions Visited 4 Branch Regions 2 Pre-discovered Areas 1 | . . 1 . . Known Exits Taken . | . . . . . Unknown Exits Taken 4 | 1 1 1 1 . Scrap Searched 2 | . . 2 . . Spaces Dug . | . . . . . Terrain Destroyed . | . . . . . Melee . | . . . . . Projectile . | . . . . . AOE . | . . . . . Terrain Rammed . | . . . . . Walls Destroyed . | . . . . . Machines Disabled . | . . . . . Actions | -11 -10 -10 -9 -9 --------- Run | Yrd Mat Min Mat Sto Total 1150 | 50 445 275 40 340 Wait 39 | . . 5 . 34 Move 948 | 34 368 251 32 263 Hop 4 | . . 3 1 . Pick Up 17 | 5 7 3 . 2 Fast Attach 1 | 1 . . . . Attach 17 | 5 6 1 . 5 Detach 4 | . 3 . . 1 Swap 3 | . 2 . . 1 Drop 5 | . 2 . . 3 Fire 98 | 5 56 12 7 18 Melee . | . . . . . Ram 5 | . . . . 5 Kick . | . . . . . Crush 1 | . 1 . . . Escape Stasis 8 | . . . . 8 Rewire . | . . . . . Trap . | . . . . . Miscellaneous . | . . . . . Route ------- -11/Scrapyard -10/Materials (discovered 4 exits: [*Mat x3] / [*Min]) -10/Mines -9/Materials -9/Storage History --------- Turn | Location | Event 11 | -11/Scrapyard | Discovered new exit (range 15) 63 | -11/Scrapyard | Entered Materials 312 | -10/Materials | Build established: Mutant 369 | -10/Materials | Discovered new exit (range 11) 564 | -10/Materials | Core integrity fell below 50% 597 | -10/Materials | Lost 5 parts (1p2n2w) 600 | -10/Materials | Discovered new exit (range 4) 635 | -10/Materials | Discovered new exit (range 12) 654 | -10/Materials | Discovered new exit (range 16) 660 | -10/Materials | Entered Mines 665 | -10/Mines | Met a Derelict bent on vengeance 678 | -10/Mines | Learned location of Zion (-7) 767 | -10/Mines | Found a damaged Exp. Sensor Array with a note attached 798 | -10/Mines | Discovered new exit (range 14) 804 | -10/Mines | Entered Materials 804 | -9/Materials | Evolved 2 slots: Utility x2 809 | -9/Materials | Discovered new exit (range 16) 831 | -9/Materials | Entered Storage 1012 | -9/Storage | Lost 3 parts (2n1w) 1012 | -9/Storage | Found Prototype Protection 1013 | -9/Storage | Identified Lgt. Regenerative Plating 1029 | -9/Storage | Core integrity fell below 50% 1094 | -9/Storage | Met a pair of Derelict thieves 1136 | -9/Storage | Core integrity fell below 20% 1156 | -9/Storage | Destroyed by Y-45 Defender with Beam Rifle Last Messages --------------- we have and get out of here before it's too late." TZ-WCQ(g) destroyed. BL-ZIJ(g) suffers critical hit (Burn). BL-ZIJ(g) destroyed. Acquired Prototype Energy Cannon. Identified Adv. Beam Cannon. Faulty integration damages Faulty Adv. Beam Cannon (-91). Dropped Faulty Adv. Beam Cannon. Acquired 53 matter. Critical hit (Burn: +37). Acquired 10 matter. Slammed into G-34 Mercenary. Slammed into Y-45 Defender. Acquired 7 matter. K-01 Serf collects debris. Slammed into Y-45 Defender. Lgt. Regenerative Plating destroyed. Critical hit (Burn: +37). Map ----- +----------------------------------------------------+ | ## !! #T##= #???????????????????????? | | ##! ! ####% #???????????#+??????????? | | #######??# #???????????# #????#?#??? | | #????????# #???????????# #????""#??? | | #????????# #???????????# #???"R"#??? | | #????????# #???????????# #???" "# ## | | #????????# #???????????# #?? # | | #????????# #???????????# #?? # | | #????????+ ############# ## # | | #????????# # ||[ # | | #????????+ + ||[ # | | ?????????######+######### # |[! # | | ?????????????? ???????# # # | | ?????????????? ???##### #? # | | ?????????????"" ""??+ #? # | | ?????????????"" ""??##### #??####### | | ????????????""" """?????# #????????? | | ????????????""" """?????# #????????? | | ??????????????" "???????# #????????? | | ?????????????? ???????# #????????? | | ??????????????###???????# +????????? | | ????????????????????????# #????????? | | ???????????????##???????# #????????? | | ???????????????# g ##### #????????? | | ???????????????# Y gl #????????? | | ???????????????# @ #????????? | | ???????????????# ##+##/##????????? | | ???????????????##??????? ?????????? | | ???????????????????????? ?????????? | | ??????????????????????? = ????????? | | ??????????????????????? ????????? | | ?????????????????????? "Y" ???????? | | ?????????????????????? """ ???????? | | ?????????????????????# ??????? | | ?????????????????????#########??????? | | ????????????????????????????????????? | | ????????????????????????????????????? | | ????????????????????????????????????? | | ????????????????????????????????????? | | ????????????????????????????????????? | | ????????????????????????????????????? | | ????????????????????????????????????? | | ????????????????????????????????????? | | ????????????????????????????????????? | | ????????????????????????????????????? | | ????????????????????????????????????? | | ????????????????????????????????????? | | ????????????????????????????????????? | | ????????????????????????????????????? | | ????????????????????????????????????? | +----------------------------------------------------+ Best States ------------- Heat Dissipation 28 Energy Generation 10 Energy Capacity 250 Matter Stores 300 Matter Capacity 300 Sight Range 16 Terrain Scan Density 10 Armor Coverage 150 Evasion (%) 62 Recoil Reduction 2 Item Schematics ----------------- None Robot Schematics ------------------ None Fabricated ------------ Nothing Alien Tech Used ----------------- None Achievements -------------- None Challenges ------------ None Game ------ Seed ArchitectUltimateScreen Manual? 0 Play Time 00:13:37 Cumulative 55.1 hours Start 2025.03.06 @ 01:34:17 End 2025.03.06 @ 01:47:06 Sessions 1 Manual Loads 0 Difficulty Rogue Special Mode None Game No. 74 Rogue 60 Adventurer 14 Explorer 0 Win Type - Total 0 Types 0/0/0/0/0/0/0/0/0 Lore% 20 Gallery% 40 Achievement% 37 Wizard Run 0 Options --------- Layout 1 ASCII 0 Keyboard 0 Movement Mouse Keybinds 0 Fullscreen 1 Font 24/Smallcaps Map View 50x35 Zoom Use 0% Tactical HUD 0 Map Filters NONE Filters NONE Steam 1 RUN: e68badaa-ebdd-4f03-8189-11b58fa09f2d